Workbook

Sheet Year 1
B1: Name of the Organisation: Avehi Abacus Project
A2: Budget for 3 Years ( April 2012 to March 2015)
J3: April 2013 to March 2014 | P3: April 2014 to March 2015
A4: Sl. No | B4: Budget Head | C4: Unit | D4: Time | E4: Unit Cost | F4: Trust | G4: Local Contribution/Other Donor | H4: Request to Asha for Education (read the note at the bottom) | I4: Total | J4: Unit | K4: Time | L4: Unit Cost | M4: Trust | N4: Local Contribution/Other Donor | O4: Total | P4: Unit | Q4: Time | R4: Unit Cost | S4: Trust | T4: Local Contribution/Other Donor | U4: Total
E5: Rs | F5: Rs | G5: Rs | I5: Rs | L5: Rs | M5: Rs | N5: Rs | O5: Rs | R5: Rs | S5: Rs | T5: Rs | U5: Rs
A6: A | B6: PERSONNEL
A7: 1 | B7: Salary Program
A8: i | B8: Director
A9: ii | B9: Trainer, Writer & Researcher | C9: 1 | D9: 12 | E9: 14550 | F9: =C9*D9*E9 -> 174600 | G9: =13200*6 -> 79200 | H9: =F9-G9 -> 95400 | I9: =G9+H9 -> 174600 | J9: 1 | K9: 12 | L9: 16050 | M9: =J9*K9*L9 -> 192600 | O9: =M9+N9 -> 192600 | P9: 1 | Q9: 12 | R9: 17700 | S9: =P9*Q9*R9 -> 212400 | U9: =S9+T9 -> 212400
A10: iii | B10: Trainer, Writer & Researcher | C10: 1 | D10: 12 | E10: 14550 | F10: =C10*D10*E10 -> 174600 | G10: =13200*6 -> 79200 | H10: =F10-G10 -> 95400 | I10: =G10+H10 -> 174600 | J10: 1 | K10: 12 | L10: 16050 | M10: 192600 | O10: 192600 | P10: 1 | Q10: 12 | R10: 17700 | S10: 212400 | U10: 212400
A11: iv | B11: Trainer, Writer & Researcher | C11: 1 | D11: 12 | E11: 18200 | F11: 218400 | G11: =16500*6 -> 99000 | H11: =F11-G11 -> 119400 | I11: =G11+H11 -> 218400 | J11: 1 | K11: 12 | L11: 20050 | M11: 240600 | O11: 240600 | P11: 1 | Q11: 12 | R11: 22100 | S11: 265200 | U11: 265200
A12: v | B12: Chief Project Coordinator
A13: vi | B13: Assistant Programme Coordinator (1) | C13: 1 | D13: 12 | E13: 21400 | F13: 256800 | G13: =19400*6 -> 116400 | H13: =F13-G13 -> 140400 | I13: =G13+H13 -> 256800 | J13: 1 | K13: 12 | L13: 23600 | M13: 283200 | O13: 283200 | P13: 1 | Q13: 12 | R13: 26000 | S13: 312000 | U13: 312000
A14: vii | B14: Field Coordinators ( 6 ) | C14: 6 | D14: 12 | E14: 18500 | F14: 1332000 | G14: =16800*6*6 -> 604800 | H14: 727200 | I14: 1332000 | J14: 6 | K14: 12 | L14: 20400 | M14: 1468800 | O14: 1468800 | P14: 6 | Q14: 12 | R14: 22500 | S14: 1620000 | U14: 1620000
A15: viii | B15: Field Representatives ( 70 ) | C15: 70 | D15: 12 | E15: 9400 | F15: 7896000 | G15: =8500*50*6 -> 2550000 | H15: 5346000 | I15: 7896000 | J15: 70 | K15: 12 | L15: 10400 | M15: 8736000 | O15: 8736000 | P15: 70 | Q15: 12 | R15: 11500 | S15: 9660000 | U15: 9660000
A16: ix | B16: Networking Coordinator | C16: 1 | D16: 12 | E16: 19700 | F16: 236400 | G16: =17900*6 -> 107400 | H16: 129000 | I16: 236400 | J16: 1 | K16: 12 | L16: 21700 | M16: 260400 | O16: 260400 | P16: 1 | Q16: 12 | R16: 23900 | S16: 286800 | U16: 286800
A17: x | B17: Research and Networking Officer | C17: 1 | D17: 12 | E17: 16050 | F17: 192600 | G17: =14550*6 -> 87300 | H17: 105300 | I17: 192600 | J17: 1 | K17: 12 | L17: 17700 | M17: 212400 | O17: 212400 | P17: 1 | Q17: 12 | R17: 19500 | S17: 234000 | U17: 234000
A18: xi | B18: Production Coordinator | C18: 1 | D18: 12 | E18: 14550 | F18: 174600 | G18: =13200*6 -> 79200 | H18: 95400 | I18: 174600 | J18: 1 | K18: 12 | L18: 16050 | M18: =J18*K18*L18 -> 192600 | O18: 192600 | P18: 1 | Q18: 12 | R18: 17700 | S18: =P18*Q18*R18 -> 212400 | U18: 212400
B20: Pre-service Teacher Education Module
A21: xii | B21: Salary for field work coordinator (liaison with DIET's,follow -up,feedback)
B23: Research Study on Status of Education in Bombay
A24: xiii | B24: Research Coordinator (1) | C24: 1 | D24: 12 | E24: 33000 | F24: 396000 | G24: 396000 | H24: =F24-G24 -> 0 | I24: =G24+H24 -> 396000
A25: xiv | B25: Assistant Coordinator (2) | C25: 2 | D25: 12 | E25: 16500 | F25: 396000 | G25: 396000 | H25: =F25-G25 -> 0 | I25: =G25+H25 -> 396000
B26: Sub Total Salary Prg. | F26: =SUM(F8:F25) -> 11448000 | G26: =SUM(G8:G25) -> 4594500 | H26: =SUM(H8:H25) -> 6853500 | I26: =SUM(I8:I25) -> 11448000 | M26: =SUM(M8:M25) -> 11779200 | N26: =SUM(N8:N25) -> 0 | O26: =SUM(O8:O25) -> 11779200 | S26: =SUM(S8:S25) -> 13015200 | T26: =SUM(T8:T25) -> 0 | U26: =SUM(U8:U25) -> 13015200
A27: 2 | B27: Salary Admin
A28: i | F28: =C28*D28*E28 -> 0 | I28: =F28+G28 -> 0 | M28: =J28*K28*L28 -> 0 | O28: =M28+N28 -> 0 | S28: =P28*Q28*R28 -> 0 | U28: =S28+T28 -> 0
I29: =F29+G29 -> 0
B30: Sub Total Salary Adm. | F30: =SUM(F28:F29) -> 0 | G30: =SUM(G28:G29) -> 0 | I30: =SUM(I28:I29) -> 0 | M30: =SUM(M28:M29) -> 0 | N30: =SUM(N28:N29) -> 0 | O30: =SUM(O28:O29) -> 0 | S30: =SUM(S28:S29) -> 0 | T30: =SUM(T28:T29) -> 0 | U30: =SUM(U28:U29) -> 0
B31: Total Salary | F31: =F26+F30 -> 11448000 | G31: =G26+G30 -> 4594500 | H31: =H26+H30 -> 6853500 | I31: =I26+I30 -> 11448000 | M31: =M26+M30 -> 11779200 | N31: =N26+N30 -> 0 | O31: =O26+O30 -> 11779200 | S31: =S26+S30 -> 13015200 | T31: =T26+T30 -> 0 | U31: =U26+U30 -> 13015200
A32: B | B32: CAPITAL COST
A33: I | B33: Furniture : Cupboards 1 cupboard per school - Cupboards to be supplied to 900 BMC Schools for storage of Sangati material
A34: ii | B34: Repair and Maintenance : Wall units & storage in 2 rooms, painting, plumbing, water filter etc.,
A35: iii | B35: Laptops (2)
B36: Total Capital Cost | F36: =SUM(F33:F35) -> 0 | G36: =SUM(G33:G35) -> 0 | I36: =SUM(I33:I35) -> 0 | M36: =SUM(M33:M35) -> 0 | N36: =SUM(N33:N35) -> 0 | O36: =SUM(O33:O35) -> 0 | S36: =SUM(S33:S35) -> 0 | T36: =SUM(T33:T35) -> 0 | U36: =SUM(U33:U35) -> 0
A37: C | B37: PROGRAM COST
A38: i | B38: Implementaion of Sangati
A39: a | B39: Capacity Building workshop for staff
B40: Tea, Snacks and Lunch | C40: 1 | D40: 1 | E40: 20000 | F40: =C40*D40*E40 -> 20000 | G40: 20000 | H40: =F40-G40 -> 0 | I40: =G40+H40 -> 20000 | J40: 1 | K40: 1 | L40: 20000 | M40: =J40*K40*L40 -> 20000 | O40: =M40+N40 -> 20000 | P40: 1 | Q40: 1 | R40: 20000 | S40: =P40*Q40*R40 -> 20000 | U40: =S40+T40 -> 20000
B41: Venue Charges | C41: 1 | D41: 1 | E41: 20000 | F41: =C41*D41*E41 -> 20000 | G41: 20000 | H41: =F41-G41 -> 0 | I41: =G41+H41 -> 20000 | J41: 1 | K41: 1 | L41: 20000 | M41: =J41*K41*L41 -> 20000 | O41: =M41+N41 -> 20000 | P41: 1 | Q41: 1 | R41: 20000 | S41: =P41*Q41*R41 -> 20000 | U41: =S41+T41 -> 20000
A43: b | B43: Delivery Charges for cupboards supplied to BMC Schools
A44: c | B44: Travel for field Support & Monitoring of Sangati Programme | C44: 75 | D44: 12 | E44: 850 | F44: =C44*D44*E44 -> 765000 | G44: =750*70*6 -> 315000 | H44: =F44-G44 -> 450000 | I44: =G44+H44 -> 765000 | J44: 75 | K44: 12 | L44: 950 | M44: =J44*K44*L44 -> 855000 | O44: =M44+N44 -> 855000 | P44: 75 | Q44: 12 | R44: 1050 | S44: =P44*Q44*R44 -> 945000 | U44: =S44+T44 -> 945000
A45: d | B45: Travel for Sangati Outreach | C45: 2 | D45: 3 | E45: 10000 | F45: =C45*D45*E45 -> 60000 | G45: 60000 | H45: =F45-G45 -> 0 | I45: =G45+H45 -> 60000 | J45: 2 | K45: 3 | L45: 12000 | M45: =J45*K45*L45 -> 72000 | O45: =M45+N45 -> 72000 | P45: 2 | Q45: 3 | R45: 15000 | S45: =P45*Q45*R45 -> 90000 | U45: =S45+T45 -> 90000
A46: e | B46: Airfare for Sangati Outreach | C46: 2 | D46: 3 | E46: 10000 | F46: =C46*D46*E46 -> 60000 | G46: 40000 | H46: =F46-G46 -> 20000 | I46: =G46+H46 -> 60000 | J46: 2 | K46: 2 | L46: 10000 | M46: =J46*K46*L46 -> 40000 | O46: =M46+N46 -> 40000 | P46: 2 | Q46: 2 | R46: 10000 | S46: =P46*Q46*R46 -> 40000 | U46: =S46+T46 -> 40000
A47: f | B47: Lodging & Boarding for Sangati Outreach | C47: 2 | D47: 2 | E47: 15000 | F47: =C47*D47*E47 -> 60000 | G47: 60000 | H47: =F47-G47 -> 0 | I47: =G47+H47 -> 60000 | J47: 2 | K47: 2 | L47: 17000 | M47: =J47*K47*L47 -> 68000 | O47: =M47+N47 -> 68000 | P47: 2 | Q47: 2 | R47: 20000 | S47: =P47*Q47*R47 -> 80000 | U47: =S47+T47 -> 80000
A50: c | B50: Worshops for Pre- service Education Module
B51: Tea break and Lunch | C51: 2 | D51: 1 | E51: 9000 | F51: =C51*D51*E51 -> 18000 | G51: 18000 | H51: =F51-G51 -> 0 | I51: =G51+H51 -> 18000 | J51: 2 | K51: 1 | L51: 9000 | M51: =J51*K51*L51 -> 18000 | O51: =M51+N51 -> 18000 | P51: 2 | Q51: 1 | R51: 9000 | S51: =P51*Q51*R51 -> 18000 | U51: =S51+T51 -> 18000
B52: Venue | C52: 2 | D52: 1 | E52: 6000 | F52: =C52*D52*E52 -> 12000 | G52: 12000 | H52: =F52-G52 -> 0 | I52: =G52+H52 -> 12000 | J52: 2 | K52: 1 | L52: 6000 | M52: =J52*K52*L52 -> 12000 | O52: =M52+N52 -> 12000 | P52: 2 | Q52: 1 | R52: 6000 | S52: =P52*Q52*R52 -> 12000 | U52: =S52+T52 -> 12000
B53: Material | C53: 2 | D53: 1 | E53: 3000 | F53: =C53*D53*E53 -> 6000 | G53: 6000 | H53: =F53-G53 -> 0 | I53: =G53+H53 -> 6000 | J53: 2 | K53: 1 | L53: 3000 | M53: =J53*K53*L53 -> 6000 | O53: =M53+N53 -> 6000 | P53: 2 | Q53: 1 | R53: 3000 | S53: =P53*Q53*R53 -> 6000 | U53: =S53+T53 -> 6000
B54: Resource person | C54: 2 | D54: 1 | E54: 4800 | F54: =C54*D54*E54 -> 9600 | G54: 9600 | H54: =F54-G54 -> 0 | I54: =G54+H54 -> 9600 | J54: 2 | K54: 1 | L54: 4800 | M54: =J54*K54*L54 -> 9600 | O54: =M54+N54 -> 9600 | P54: 2 | Q54: 1 | R54: 4800 | S54: =P54*Q54*R54 -> 9600 | U54: =S54+T54 -> 9600
A56: d | B56: Presentation of Pre - service Teacher Education Module
B57: Honararium | C57: 2 | D57: 1 | E57: 2400 | F57: =C57*D57*E57 -> 4800 | G57: 4800 | H57: =F57-G57 -> 0 | I57: =G57+H57 -> 4800 | J57: 2 | K57: 1 | L57: 2400 | M57: =J57*K57*L57 -> 4800 | O57: =M57+N57 -> 4800 | P57: 2 | Q57: 1 | R57: 2400 | S57: =P57*Q57*R57 -> 4800 | U57: =S57+T57 -> 4800
B58: Equipment Hire | C58: 2 | D58: 1 | E58: 1200 | F58: =C58*D58*E58 -> 2400 | G58: 2400 | H58: =F58-G58 -> 0 | I58: =G58+H58 -> 2400 | J58: 2 | K58: 1 | L58: 1200 | M58: =J58*K58*L58 -> 2400 | O58: =M58+N58 -> 2400 | P58: 2 | Q58: 1 | R58: 1200 | S58: =P58*Q58*R58 -> 2400 | U58: =S58+T58 -> 2400
A60: f | B60: Pre- service Teacher Education Module - work with DEd Colleges affiliated to DIET's
B61: Local Transport | C61: 2 | D61: 12 | E61: 500 | F61: =C61*D61*E61 -> 12000 | G61: 12000 | H61: =F61-G61 -> 0 | I61: =G61+H61 -> 12000 | J61: 2 | K61: 5 | L61: 500 | M61: =J61*K61*L61 -> 5000 | O61: =M61+N61 -> 5000 | P61: 2 | Q61: 5 | R61: 500 | S61: =P61*Q61*R61 -> 5000 | U61: =S61+T61 -> 5000
B62: Train Travel outside Mumbai | C62: 2 | D62: 3 | E62: 550 | F62: 3300 | G62: 3300 | H62: =F62-G62 -> 0 | I62: =G62+H62 -> 3300 | J62: 2 | K62: 3 | L62: 550 | M62: =J62*K62*L62 -> 3300 | O62: =M62+N62 -> 3300 | P62: 2 | Q62: 3 | R62: 550 | S62: =P62*Q62*R62 -> 3300 | U62: =S62+T62 -> 3300
B63: Local Travel outside Mumbai | C63: 2 | D63: 3 | E63: 250 | F63: 1500 | G63: 1500 | H63: =F63-G63 -> 0 | I63: =G63+H63 -> 1500 | J63: 2 | K63: 3 | L63: 250 | M63: =J63*K63*L63 -> 1500 | O63: =M63+N63 -> 1500 | P63: 2 | Q63: 3 | R63: 250 | S63: =P63*Q63*R63 -> 1500 | U63: =S63+T63 -> 1500
B64: Lodging & Boarding | C64: 2 | D64: 3 | E64: 3000 | F64: 18000 | G64: 18000 | H64: =F64-G64 -> 0 | I64: =G64+H64 -> 18000 | J64: 2 | K64: 3 | L64: 3000 | M64: =J64*K64*L64 -> 18000 | O64: =M64+N64 -> 18000 | P64: 2 | Q64: 3 | R64: 3000 | S64: =P64*Q64*R64 -> 18000 | U64: =S64+T64 -> 18000
A66: g | B66: Outstation travel for presentation to DIET's & SCERT
B67: Outstation Local Transport | C67: 2 | D67: 5 | E67: 500 | F67: 5000 | G67: 5000 | H67: =F67-G67 -> 0 | I67: =G67+H67 -> 5000 | J67: 2 | K67: 5 | L67: 500 | M67: =J67*K67*L67 -> 5000 | O67: =M67+N67 -> 5000 | P67: 2 | Q67: 5 | R67: 500 | S67: =P67*Q67*R67 -> 5000 | U67: =S67+T67 -> 5000
B68: Train Travel within Maharashtra ( As per the location of DIET) | C68: 2 | D68: 5 | E68: 900 | F68: 9000 | G68: 9000 | H68: =F68-G68 -> 0 | I68: =G68+H68 -> 9000 | J68: 2 | K68: 5 | L68: 900 | M68: =J68*K68*L68 -> 9000 | O68: =M68+N68 -> 9000 | P68: 2 | Q68: 5 | R68: 900 | S68: =P68*Q68*R68 -> 9000 | U68: =S68+T68 -> 9000
B69: Lodging & Boarding | C69: 2 | D69: 5 | E69: 4500 | F69: 45000 | G69: 45000 | H69: =F69-G69 -> 0 | I69: =G69+H69 -> 45000 | J69: 2 | K69: 5 | L69: 4500 | M69: =J69*K69*L69 -> 45000 | O69: =M69+N69 -> 45000 | P69: 2 | Q69: 5 | R69: 4500 | S69: =P69*Q69*R69 -> 45000 | U69: =S69+T69 -> 45000
A71: h | B71: Oustation Travel to Delhi (NCTE)
B72: Outstation Local transport | F72: 0 | M72: =J72*K72*L72 -> 0 | S72: =P72*Q72*R72 -> 0
B73: Airfare | F73: 0 | M73: =J73*K73*L73 -> 0 | S73: =P73*Q73*R73 -> 0
B74: Lodging & Boarding | F74: 0 | M74: =J74*K74*L74 -> 0 | S74: =P74*Q74*R74 -> 0
A76: iii | B76: Research Study on Status of Education in Bombay
B77: Travel | C77: 3 | D77: 5 | E77: 3000 | F77: 45000 | G77: 45000 | H77: =F77-G77 -> 0 | I77: =G77+H77 -> 45000 | J77: 3 | K77: 5 | L77: 3000 | M77: =J77*K77*L77 -> 45000 | O77: =M77+N77 -> 45000 | P77: 3 | Q77: 5 | R77: 3000 | S77: =P77*Q77*R77 -> 45000 | U77: =S77+T77 -> 45000
B78: Data Processing Charges | F78: 0 | I78: =F78+G78 -> 0 | M78: =J78*K78*L78 -> 0 | O78: =M78+N78 -> 0 | S78: =P78*Q78*R78 -> 0 | U78: =S78+T78 -> 0
B79: Acquiring information under RTI | C79: 10 | D79: 1 | E79: 1000 | F79: 10000 | G79: 10000 | H79: =F79-G79 -> 0 | I79: =G79+H79 -> 10000 | J79: 10 | K79: 1 | L79: 1000 | M79: =J79*K79*L79 -> 10000 | O79: =M79+N79 -> 10000 | P79: 10 | Q79: 1 | R79: 1000 | S79: =P79*Q79*R79 -> 10000 | U79: =S79+T79 -> 10000
B80: Tea,refreshments during community,FGD,Interview | C80: 10 | D80: 1 | E80: 1000 | F80: 10000 | G80: 10000 | H80: =F80-G80 -> 0 | I80: =G80+H80 -> 10000 | J80: 10 | K80: 1 | L80: 1000 | M80: =J80*K80*L80 -> 10000 | O80: =M80+N80 -> 10000 | P80: 10 | Q80: 1 | R80: 1000 | S80: =P80*Q80*R80 -> 10000 | U80: =S80+T80 -> 10000
B81: Institutional fees for External Consulting Organisation | C81: 1 | D81: 1 | E81: 61000 | F81: 61000 | G81: 61000 | H81: =F81-G81 -> 0 | I81: =G81+H81 -> 61000 | J81: 1 | K81: 1 | L81: 61000 | M81: =J81*K81*L81 -> 61000 | O81: =M81+N81 -> 61000 | P81: 1 | Q81: 1 | R81: 61000 | S81: =P81*Q81*R81 -> 61000 | U81: =S81+T81 -> 61000
B82: Total Program Cost | F82: =SUM(F39:F81) -> 1257600 | G82: =SUM(G39:G81) -> 787600 | H82: =SUM(H39:H81) -> 470000 | I82: =SUM(I39:I81) -> 1257600 | M82: =SUM(M39:M81) -> 1340600 | N82: =SUM(N39:N81) -> 0 | O82: =SUM(O39:O81) -> 1340600 | S82: =SUM(S39:S81) -> 1460600 | T82: =SUM(T39:T81) -> 0 | U82: =SUM(U39:U81) -> 1460600
A83: D | B83: OVERHEAD COST
A84: i | B84: Office Rent | F84: =C84*D84*E84 -> 0 | H84: =F84-G84 -> 0 | I84: =G84+H84 -> 0 | J84: 4 | K84: 12 | L84: 10000 | M84: =J84*K84*L84 -> 480000 | O84: =M84+N84 -> 480000 | P84: 4 | Q84: 12 | R84: 12000 | S84: =P84*Q84*R84 -> 576000 | U84: =S84+T84 -> 576000
A85: ii | B85: Office Supplies | C85: 1 | D85: 12 | E85: 13500 | F85: =C85*D85*E85 -> 162000 | H85: =F85-G85 -> 162000 | I85: =G85+H85 -> 162000 | J85: 1 | K85: 12 | L85: 17000 | M85: =J85*K85*L85 -> 204000 | O85: =M85+N85 -> 204000 | P85: 1 | Q85: 12 | R85: 19000 | S85: =P85*Q85*R85 -> 228000 | U85: =S85+T85 -> 228000
A86: iii | B86: Postage, Courier & Telephone for Implementation of Sangati | C86: 1 | D86: 12 | E86: 7000 | F86: =C86*D86*E86 -> 84000 | H86: =F86-G86 -> 84000 | I86: =G86+H86 -> 84000 | J86: 1 | K86: 12 | L86: 9000 | M86: =J86*K86*L86 -> 108000 | O86: =M86+N86 -> 108000 | P86: 1 | Q86: 12 | R86: 11000 | S86: =P86*Q86*R86 -> 132000 | U86: =S86+T86 -> 132000
A87: iv | B87: Postage, Courier & Telephone for Research Study on Status of Education in Bombay ( Access & Quality delivery) | C87: 1 | D87: 12 | E87: 3500 | F87: =C87*D87*E87 -> 42000 | G87: 42000 | H87: =F87-G87 -> 0 | I87: =G87+H87 -> 42000 | J87: 1 | K87: 5 | L87: 3500 | M87: =J87*K87*L87 -> 17500 | O87: =M87+N87 -> 17500 | P87: 1 | Q87: 5 | R87: 3500 | S87: =P87*Q87*R87 -> 17500 | U87: =S87+T87 -> 17500
B88: Total Overhead | F88: =SUM(F84:F87) -> 288000 | G88: =SUM(G84:G87) -> 42000 | I88: =SUM(I84:I87) -> 288000 | M88: =SUM(M84:M87) -> 809500 | N88: =SUM(N84:N87) -> 0 | O88: =SUM(O84:O87) -> 809500 | S88: =SUM(S84:S87) -> 953500 | T88: =SUM(T84:T87) -> 0 | U88: =SUM(U84:U87) -> 953500
B89: Grand Total | F89: =F31+F36+F82+F88 -> 12993600 | G89: =G31+G36+G82+G88 -> 5424100 | H89: =H31+H36+H82+H88 -> 7323500 | I89: =I31+I36+I82+I88 -> 12993600 | M89: =M31+M36+M82+M88 -> 13929300 | N89: =N31+N36+N82+N88 -> 0 | O89: =O31+O36+O82+O88 -> 13929300 | S89: =S31+S36+S82+S88 -> 15429300 | T89: =T31+T36+T82+T88 -> 0 | U89: =U31+U36+U82+U88 -> 15429300
B91: Note: Request for grant for the period April 2012 to March 2013- Rs 7,323,500/-
B92: Note: Asha is only approving Rs. 5,200,000 for the period April 2012 to March 2013 due to financial constraints and Avehi will find other sources to fund the gap.
